lending/lending_fUSD_20240926
["ID","MTS","AMOUNT","RATE_DAILY","PERIOD"]
[339233210,1727386238360,-452.43701554,0.000125,2]
[339233211,1727386238370,-500.0,0.00012534,2]
[339233212,1727386238379,-500.0,0.000126,4]
[339233213,1727386238389,-500.0,0.000127,4]
[339233214,1727386238399,-9855.77220001,0.0001278,2]
[339233215,1727386238408,-500.0,0.00012797,2]
[339233216,1727386238417,-200.0,0.00012797,2]
[339233217,1727386238427,-156.2770892,0.00012797,2]
[339233218,1727386238436,-276.66423941,0.00012797,2]
[339233219,1727386238445,-276.66423939,0.00012797,2]
[339233220,1727386238456,-276.66423939,0.00012798,2]
[339233221,1727386238466,-276.66423939,0.00012798,2]
[339233222,1727386238475,-276.66423939,0.00012799,2]
[339233223,1727386238484,-214.65479575,0.00012799,2]
[339233224,1727386238494,-276.66423939,0.00012799,2]
[339233225,1727386238504,-276.66423939,0.000128,2]
[339233226,1727386238513,-1752.9175,0.000128,2]
[339233227,1727386238522,-1000.0,0.000128,2]
[339233228,1727386238532,-5383.8135,0.000128,2]
[339233229,1727386238541,-180.45951325,0.000128,2]
[339233230,1727386238551,-305.15633141,0.000128,2]
[339233231,1727386238561,-287.36,0.000128,2]
[339233232,1727386238571,-1074.21,0.000128,2]
[339233233,1727386238580,-900.0,0.000128,4]
[339233234,1727386238590,-1000.0,0.000128,2]
[339233235,1727386238599,-276.66423939,0.000128,2]
[339233236,1727386238608,-150.0,0.000128,2]
[339233237,1727386238617,-387.3754582,0.000128,2]
[339233238,1727386238628,-2009.04498826,0.000128,2]
[339233239,1727386238638,-588.56681748,0.000128,2]
[339233240,1727386238650,-500.0,0.00012808,2]
[339233241,1727386238660,-8626.69260169,0.0001288,2]
[339233242,1727386238670,-152.82,0.00012887,2]
[339233244,1727386238680,-152.82,0.00012887,2]
[339233246,1727386238689,-152.82,0.00012887,2]
[339233247,1727386238698,-152.82,0.00012887,2]
[339233248,1727386238707,-296.16955207,0.00012887,2]
[339233249,1727386238717,-152.82,0.00012889,2]
[339233250,1727386238726,-21946.59,0.0001289,2]
[339233251,1727386238736,-499.99,0.0001289,2]
[339233252,1727386238745,-9999.99,0.0001289,2]
[339233253,1727386238755,-1489.4,0.0001289,2]
[339233254,1727386238764,-152.82,0.0001289,2]
[339233255,1727386238775,-152.82,0.0001289,2]
[339233256,1727386238784,-152.82,0.0001289,2]
[339233257,1727386238793,-152.82,0.0001289,2]
[339233258,1727386238803,-152.82,0.0001289,2]
[339233259,1727386238812,-152.82,0.0001289,2]
[339233260,1727386238821,-152.82,0.0001289,2]
[339233261,1727386238831,-152.82,0.0001289,2]
[339233262,1727386238840,-152.82,0.0001289,2]
[339233263,1727386238849,-152.82,0.0001289,2]
[339233264,1727386238859,-152.82,0.0001289,2]
[339233265,1727386238869,-152.82,0.0001289,2]
[339233266,1727386238878,-152.82,0.0001289,2]
[339233267,1727386238888,-152.82,0.0001289,2]
[339233268,1727386238898,-8831.07940203,0.00012894,2]
[339233269,1727386238908,-273.982,0.00012896,2]
[339233270,1727386238918,-193.27,0.00012896,2]
[339233271,1727386238928,-159.06396702,0.00012896,2]
[339233272,1727386238937,-500.0,0.00012896,2]
[339233273,1727386238947,-500.0,0.00012896,2]
[339233274,1727386238956,-500.0,0.00012896,2]
[339233275,1727386238966,-510.78818739,0.00012896,2]
[339233276,1727386238975,-166570.90860235,0.00012897,3]
[339233277,1727386238991,-1259.43334316,0.00012897,3]
[339233278,1727386239003,-1782.1565503,0.00012897,3]
[339233279,1727386239017,-1257.43565756,0.00012897,3]
[339233284,1727386239915,-2933.94892873,0.00012897,3]
[339233285,1727386239927,-2110.66568425,0.00012897,3]
[339233286,1727386239938,-1458.91842534,0.00012897,3]
[339233287,1727386239949,-824.9625992,0.00012897,3]
[339233288,1727386239964,-794.79791123,0.00012897,3]
[339233289,1727386239975,-397.95,0.00012897,3]
[339233290,1727386239986,-11609.2,0.00012897,3]
[339233291,1727386239997,-6664.80077973,0.00012897,3]
[339233292,1727386240036,-998.486475,0.00012897,3]
[339233293,1727386240047,-1305.84,0.00012897,3]
[339233294,1727386240060,-4218.43884436,0.00012897,3]
[339233295,1727386240071,-969.65529697,0.00012897,3]
[339233296,1727386240082,-822.41753221,0.00012897,3]
[339233297,1727386240101,-2383.28089997,0.00012897,3]
[339233311,1727386240338,-1742.4038997,0.00012897,3]
[339233313,1727386240349,-391.951146,0.00012897,3]
[339233315,1727386240361,-34390.09549259,0.00012897,3]
[339233317,1727386240372,-64524.22854119,0.00012897,3]
[339233319,1727386240383,-27053.90907254,0.00012897,3]
[339233322,1727386240398,-91681.41340885,0.00012897,3]
[339233452,1727386243036,-321.9831508,0.00012799,2]
[339233453,1727386243046,-1186867.27196064,0.00012897,3]
[339233454,1727386243097,-359.73856219,0.00012897,3]
[339233455,1727386243109,-1720.3100005,0.00012897,3]
[339233456,1727386243120,-5420.415,0.00012897,3]
[339233457,1727386243132,-636.49603942,0.00012897,3]
[339233458,1727386243143,-1302.1840501,0.00012897,3]
[339233459,1727386243167,-827.92592186,0.00012897,3]
[339233460,1727386243179,-7300.0,0.00012897,3]
[339233461,1727386243219,-3367.8220985,0.00012897,3]
[339233462,1727386243231,-3585.64093181,0.00012897,3]
[339233463,1727386243243,-2382.52120733,0.00012897,3]
[339233464,1727386243281,-328.04999985,0.00012897,3]
[339233486,1727386246387,-704.85845544,0.00012897,3]
[339233487,1727386246399,-652.92,0.00012897,3]
[339233489,1727386246410,-10217.7477641,0.00012897,3]
[339233490,1727386267658,150.0,0.0001389,30]
[339233491,1727386323294,267.45,0.00010959,2]
[339233492,1727386464755,500.0,0.00010068,2]
[339233493,1727386465088,500.0,0.00010068,2]
[339233494,1727386465439,500.0,0.00010068,2]
[339233495,1727386465780,500.0,0.00010068,2]
[339233496,1727386466110,500.0,0.00010068,2]
[339233497,1727386467063,500.0,0.00010068,2]
[339233498,1727386467360,500.0,0.00010068,2]
[339233499,1727386467723,500.0,0.00010068,2]
[339233500,1727386468084,500.0,0.00010068,2]
[339233501,1727386468412,500.0,0.00010068,2]
[339233502,1727386468834,500.0,0.00010068,2]
[339233503,1727386469200,500.0,0.00010068,2]
[339233504,1727386469601,500.0,0.00010068,2]
[339233505,1727386469998,500.0,0.00010068,2]
[339233506,1727386470331,500.0,0.00010068,2]
[339233507,1727386470663,500.0,0.00010068,2]
[339233508,1727386471105,500.0,0.00010068,2]
[339233509,1727386471322,500.0,0.00010068,2]
[339233510,1727386471644,500.0,0.00010068,2]
[339233511,1727386472001,500.0,0.00010068,2]
[339233512,1727386472328,500.0,0.00010068,2]
[339233513,1727386472648,500.0,0.00010068,2]
[339233514,1727386473038,500.0,0.00010068,2]
[339233515,1727386473304,500.0,0.00010068,2]
[339233516,1727386473929,500.0,0.00010068,2]
[339233517,1727386474243,500.0,0.00010068,2]
[339233518,1727386476750,500.0,0.00010068,2]
[339233519,1727386477074,500.0,0.00010068,2]
[339233520,1727386477489,500.0,0.00010068,2]
[339233521,1727386477836,500.0,0.00010068,2]
[339233522,1727386478149,500.0,0.00010068,2]
[339233523,1727386478502,500.0,0.00010068,2]
[339233524,1727386478846,500.0,0.00010068,2]
[339233525,1727386479215,500.0,0.00010068,2]
[339233526,1727386479534,500.0,0.00010068,2]
[339233527,1727386479870,500.0,0.00010068,2]
[339233528,1727386480196,500.0,0.00010068,2]
[339233529,1727386480509,500.0,0.00010068,2]
[339233530,1727386480839,500.0,0.00010068,2]
[339233531,1727386481169,500.0,0.00010068,2]
[339233532,1727386481490,500.0,0.00010068,2]
[339233533,1727386481803,500.0,0.00010068,2]
[339233534,1727386482152,500.0,0.00010068,2]
[339233535,1727386482480,500.0,0.00010068,2]
[339233536,1727386482939,500.0,0.00010068,2]
[339233537,1727386483556,500.0,0.00010068,2]
[339233538,1727386483783,500.0,0.00010068,2]
[339233539,1727386484125,500.0,0.00010068,2]
[339233540,1727386484441,500.0,0.00010068,2]
[339233541,1727386484764,500.0,0.00010068,2]
[339233542,1727386485087,500.0,0.00010068,2]
[339233543,1727386485406,500.0,0.00010068,2]
[339233544,1727386485718,500.0,0.00010068,2]
[339233545,1727386486041,500.0,0.00010068,2]
[339233546,1727386486388,500.0,0.00010068,2]
[339233547,1727386486700,500.0,0.00010068,2]
[339233548,1727386487033,500.0,0.00010068,2]
[339233549,1727386487398,500.0,0.00010068,2]
[339233550,1727386487802,500.0,0.00010068,2]
[339233551,1727386488127,500.0,0.00010068,2]
[339233552,1727386488473,500.0,0.00010068,2]
[339233553,1727386488841,500.0,0.00010068,2]
[339233554,1727386489184,500.0,0.00010068,2]
[339233555,1727386489533,500.0,0.00010068,2]
[339233556,1727386489852,500.0,0.00010068,2]
[339233557,1727386490178,500.0,0.00010068,2]
[339233558,1727386490510,500.0,0.00010068,2]
[339233559,1727386490864,500.0,0.00010068,2]
[339233560,1727386491191,500.0,0.00010068,2]
[339233561,1727386491509,500.0,0.00010068,2]
[339233562,1727386492512,500.0,0.00010068,2]
[339233563,1727386492837,500.0,0.00010068,2]
[339233564,1727386493162,500.0,0.00010068,2]
[339233565,1727386494107,500.0,0.00010068,2]
[339233566,1727386494417,500.0,0.00010068,2]
[339233567,1727386494888,500.0,0.00010068,2]
[339233568,1727386495207,500.0,0.00010068,2]
[339233569,1727386495536,500.0,0.00010068,2]
[339233570,1727386495889,500.0,0.00010068,2]
[339233571,1727386496334,500.0,0.00010068,2]
[339233572,1727386496750,566.0,0.00010068,2]
[339233573,1727386509398,200.0,0.00010068,2]
[339233574,1727386509729,200.0,0.00010068,2]
[339233575,1727386510122,200.0,0.00010068,2]
[339233576,1727386510448,200.0,0.00010068,2]
[339233577,1727386510795,253.0,0.00010068,2]
[339233578,1727386713676,500.0,0.00010068,2]
[339233579,1727386831845,150.0,0.0001389,30]
[339233580,1727386872509,177.52,0.00010959,2]
[339233581,1727387040496,448.93,9.388e-05,2]
[339233592,1727387129683,668.0,0.00010068,2]
[339233595,1727387138224,500.0,0.00010068,2]
[339233596,1727387138994,500.0,0.00010068,2]
[339233597,1727387139045,500.0,0.00010068,2]
[339233598,1727387139245,500.0,0.00010068,2]
[339233599,1727387140166,500.0,0.00010068,2]
[339233600,1727387140510,500.0,0.00010068,2]
[339233601,1727387140885,500.0,0.00010068,2]
[339233602,1727387141314,500.0,0.00010068,2]
[339233603,1727387141637,671.0,0.00010068,2]
[339233609,1727387340177,150.0,0.0001389,30]
[339233612,1727387374196,170.92,8.968e-05,2]
[339233619,1727387432202,-500.0,0.00011164,2]
[339233620,1727387432212,-379.36353194,0.00011164,2]
[339233621,1727387432224,-120.63646806,0.00011164,2]
[339233622,1727387432235,-500.0,0.00011164,2]
[339233623,1727387432245,-165.12754183,0.00011164,2]
[339233624,1727387432255,-300.0,0.00011191,2]
[339233625,1727387432264,-250.0,0.00011197,2]
[339233626,1727387432274,-300.0,0.00011209,2]
[339233627,1727387432285,-6270.63972348,0.0001121,2]
[339233628,1727387432299,-966.03305,0.0001121,2]
[339233629,1727387432312,-277.9595,0.0001121,2]
[339233630,1727387432324,-1332.63115809,0.0001121,2]
[339233631,1727387432337,-1980.46077111,0.0001121,2]
[339233632,1727387432350,-6347.85579732,0.0001121,2]
[339233633,1727387432360,-800.0,0.00011282,2]
[339233634,1727387432371,-618.66,0.00011287,2]
[339233635,1727387432380,-1247.75,0.00011303,2]
[339233636,1727387432389,-250.0,0.00011307,2]
[339233637,1727387432398,-199.02,0.0001132,2]
[339233638,1727387432409,-250.0,0.00011331,2]
[339233639,1727387432419,-639.79266509,0.00011331,2]
[339233640,1727387432433,-3172.38668386,0.00011331,2]
[339233641,1727387432446,-57.05065105,0.00011331,2]
[339233642,1727387432456,-184.65,0.00011462,2]
[339233643,1727387432466,-150.0,0.00011487,2]
[339233644,1727387432478,-372.04993183,0.00011498,2]
[339233645,1727387432490,-53.07006817,0.00011498,2]
[339233646,1727387432502,-397.37929224,0.00011498,2]
[339233647,1727387432526,-1396.50221221,0.00011498,2]
[339233648,1727387432541,-816.44615001,0.00011498,2]
[339233649,1727387432552,-1786.71591369,0.00011498,2]
[339233650,1727387432575,-1205.0,0.00011498,2]
[339233651,1727387432586,-4184.59,0.00011498,2]
[339233652,1727387432597,-213.35643185,0.00011498,2]
[339233653,1727387432606,-448.93,0.00011652,2]
[339233654,1727387432616,-17.06386815,0.00011652,2]
[339233655,1727387432629,-482.92613185,0.00011652,2]
[339233656,1727387432639,-200.0,0.00011766,2]
[339233657,1727387432648,-327.02,0.00011788,2]
[339233658,1727387432657,-200.0,0.000119,4]
[339233659,1727387432666,-500.0,0.00012,4]
[339233660,1727387432676,-800.0,0.000121,4]
[339233661,1727387432685,-150.0,0.00012199,2]
[339233662,1727387432694,-1100.0,0.000122,4]
[339233664,1727387432704,-3091.37274828,0.00012254,2]
[339233665,1727387432713,-1400.0,0.000123,4]
[339233666,1727387432723,-420.0,0.00012315,2]
[339233667,1727387432734,-200.0,0.000124,4]
[339233668,1727387432743,-200.0,0.000125,4]
[339233669,1727387432753,-500.0,0.00012534,2]
[339233670,1727387432763,-1324.674,0.00012534,2]
[339233671,1727387432773,-200.0,0.000126,4]
[339233672,1727387432783,-2500.0,0.00012643,2]
[339233673,1727387432792,-3387.60900208,0.00012667,2]
[339233674,1727387432802,-3387.60900201,0.00012682,2]
[339233675,1727387432811,-800.0,0.00012692,2]
[339233676,1727387432821,-3387.60900201,0.00012697,2]
[339233677,1727387432831,-686.6607,0.00012697,2]
[339233678,1727387432842,-1328.3011,0.00012697,2]
[339233679,1727387432853,-200.0,0.000127,4]
[339233680,1727387432863,-126461.80345782,0.00012706,2]
[339233681,1727387432881,-484.32,0.00012706,2]
[339233682,1727387432892,-503.022718,0.00012706,2]
[339233683,1727387432903,-490.46366303,0.00012706,2]
[339233684,1727387432915,-697.89036063,0.00012706,2]
[339233685,1727387432927,-8868.9113244,0.00012706,2]
[339233686,1727387432941,-1097.34227907,0.00012706,2]
[339233689,1727387438382,-538.27659695,0.00012706,2]
[339233690,1727387438440,-5394.05202613,0.00012706,2]
[339233691,1727387438451,-3387.60900201,0.00012711,2]
[339233692,1727387438461,-3387.60900201,0.00012726,2]
[339233693,1727387438471,-3387.60900201,0.00012741,2]
[339233694,1727387438481,-3387.60900201,0.00012756,2]
[339233695,1727387438491,-150.75966,0.00012767,2]
[339233696,1727387438502,-30116.54327462,0.0001277,2]
[339233697,1727387438513,-3387.60900201,0.0001277,2]
[339233698,1727387438523,-3387.60900201,0.00012785,2]
[339233699,1727387438535,-500.0,0.00012797,2]
[339233700,1727387438544,-159.41034035,0.00012799,2]
[339233701,1727387438554,-159.41034035,0.000128,2]
[339233702,1727387438564,-800.0,0.000128,4]
[339233703,1727387438574,-159.41034035,0.000128,2]
[339233704,1727387438583,-3387.60900201,0.000128,2]
[339233705,1727387438593,-500.0,0.00012808,2]
[339233706,1727387438603,-219.185,0.00012808,2]
[339233707,1727387438614,-197.44636803,0.00012887,2]
[339233708,1727387438625,-152.23,0.00012887,2]
[339233709,1727387438635,-152.23,0.0001289,2]
[339233710,1727387438645,-152.23,0.0001289,2]
[339233711,1727387438655,-184.65,0.00012894,2]
[339233712,1727387438665,-758.92,0.00012896,2]
[339233713,1727387438675,-617.43310722,0.00012897,2]
[339233714,1727387438685,-333780.79173897,0.00012897,3]
[339233715,1727387438695,-4939.46485776,0.00012897,2]
[339233716,1727387438704,-1000.0,0.00012899,2]
[339233717,1727387438714,-1000.0,0.00012899,2]
[339233718,1727387438725,-188.57563836,0.00012899,2]
[339233719,1727387438735,-500.0,0.00012899,2]
[339233720,1727387438745,-500.0,0.00012899,2]
[339233721,1727387438755,-500.0,0.00012899,2]
[339233722,1727387438765,-500.0,0.00012899,2]
[339233723,1727387438775,-185.48424718,0.00012899,2]
[339233724,1727387438786,-1000.0,0.00012899,2]
[339233725,1727387438796,-1000.0,0.00012899,2]
[339233726,1727387438805,-241609.50764694,0.000129,2]
[339233727,1727387438820,-534.4333347,0.000129,2]
[339233728,1727387438832,-2042.05432558,0.000129,2]
[339233729,1727387438843,-5020.75744016,0.000129,2]
[339233730,1727387438854,-483.7355491,0.000129,2]
[339233731,1727387438866,-437.37113765,0.000129,2]
[339233732,1727387438880,-4009.05611001,0.000129,2]
[339233734,1727387438907,-941.72354026,0.000129,2]
[339233739,1727387438962,-2074.28288858,0.000129,2]
[339233740,1727387438975,-601.94567442,0.000129,2]
[339233818,1727387439812,1050.0,0.00011,2]
[339233842,1727387440092,-4808.35752854,0.000129,2]
[339233858,1727387440265,-3186.20673156,0.000129,2]
[339233860,1727387440280,-432.80328215,0.000129,2]
[339233943,1727387441432,-2074.542965,0.000129,2]
[339233944,1727387441455,-313.427364,0.000129,2]
[339234125,1727387443170,-1118.97,0.000129,2]
[339234137,1727387443228,-510.33427452,0.000129,2]
[339234146,1727387443287,-20935.32554142,0.000129,2]
[339234149,1727387443298,-2248.95674392,0.000129,2]
[339234151,1727387443309,-3972.09929284,0.000129,2]
[339234153,1727387443320,-2551.14997692,0.000129,2]
[339234155,1727387443331,-14654.1139,0.000129,2]
[339234158,1727387443342,-323.16980424,0.000129,2]
[339234160,1727387443356,-12436.37659587,0.000129,2]
[339234162,1727387443365,-552.08127123,0.000129,2]
[339234164,1727387443376,-344.59647188,0.000129,2]
[339234167,1727387443388,-8823.99346952,0.000129,2]
[339234176,1727387443461,-10035.08183559,0.000129,2]
[339234178,1727387443472,-410.98881334,0.000129,2]
[339234185,1727387443527,-1377.53454,0.000129,2]
[339234187,1727387443538,-614.29174979,0.000129,2]
[339234369,1727387446211,-403.53386833,0.000129,2]
[339234370,1727387446223,-1240.6564181,0.000129,2]
[339234371,1727387446296,-1390.08845816,0.000129,2]
[339234372,1727387446308,-1321.4022825,0.000129,2]
[339234373,1727387446344,-1869.3662922,0.000129,2]
[339234374,1727387446360,-6372.4344052,0.000129,2]
[339234375,1727387446371,-616.39862597,0.000129,2]
[339234376,1727387446387,-530.6,0.000129,2]
[339234377,1727387446403,-611.804,0.000129,2]
[339234378,1727387446475,-5858.653176,0.000129,2]
[339234379,1727387446487,-7754.76432219,0.000129,2]
[339234380,1727387446497,-5545.23567789,0.000129,2]
[339234381,1727387446537,-3564.74835214,0.000129,2]
[339234382,1727387446549,-260.0,0.000129,2]
[339234384,1727387528781,193.29,0.00010959,2]
[339234385,1727387654091,732.75604716,0.00011064,2]
[339234386,1727387675879,441.45,9.763e-05,2]
[339234387,1727387801927,500.0,0.00010068,2]
[339234388,1727387822946,150.0,0.00011009,2]
[339234389,1727387992877,170.92,9.18e-05,2]
[339234390,1727388074766,224.95,0.00010959,2]
[339234391,1727388234930,436.22,9.528e-05,2]
[339234416,1727388632411,-432.92,0.00011159,2]
[339234417,1727388632423,-54.56190021,0.00011159,2]
[339234418,1727388632433,-500.0,0.00011164,2]
[339234419,1727388632442,-49.94977918,0.00011164,2]
[339234420,1727388632650,-450.05022082,0.00011164,2]
[339234421,1727388632663,-500.0,0.00011164,2]
[339234422,1727388632675,-261.61,0.0001142,2]
[339234423,1727388632684,-250.0,0.00011421,2]
[339234424,1727388632694,-12641.93,0.00011427,2]
[339234425,1727388632703,-1000.0,0.00011435,2]
[339234426,1727388632712,-250.0,0.00011464,2]
[339234427,1727388632721,-168.81,0.00011473,2]
[339234428,1727388632730,-250.0,0.00011477,2]
[339234429,1727388632740,-1500.0,0.00011477,2]
[339234430,1727388632749,-347.54,0.00011499,2]
[339234431,1727388632758,-1688.54,0.00011499,2]
[339234432,1727388632767,-5193.48,0.00011499,2]
[339234433,1727388632777,-610.24,0.00011503,2]
[339234434,1727388632786,-150.99,0.00011503,2]
[339234435,1727388632795,-353.16,0.00011503,2]
[339234436,1727388632805,-499.99,0.00011503,2]
[339234437,1727388632814,-436.22,0.00011792,2]
[339234439,1727388632823,-157.83,0.00011796,2]
[339234440,1727388632832,-300.0,0.000119,4]
[339234441,1727388632842,-600.0,0.00012,4]
[339234442,1727388632852,-900.0,0.000121,4]
[339234443,1727388632863,-1200.0,0.000122,4]
[339234444,1727388632874,-1500.0,0.000123,4]
[339234445,1727388632885,-300.0,0.000124,4]
[339234446,1727388632895,-300.0,0.000125,4]
[339234447,1727388632905,-500.0,0.00012534,2]
[339234448,1727388632915,-216.30053767,0.00012597,2]
[339234449,1727388632924,-150.0,0.00012597,2]
[339234450,1727388632934,-300.0,0.000126,4]
[339234451,1727388632944,-20675.2595,0.00012607,2]
[339234452,1727388632953,-2077.7187,0.00012607,2]
[339234453,1727388632963,-469.3346,0.00012607,2]
[339234454,1727388632972,-1373.75738366,0.00012607,2]
[339234455,1727388632987,-784.98522457,0.00012607,2]
[339234456,1727388633005,-515.63660001,0.00012607,2]
[339234457,1727388633017,-13313.90669891,0.00012607,2]
[339234458,1727388633029,-5360.88677165,0.00012607,2]
[339234459,1727388633059,-1160.00238867,0.00012607,2]
[339234460,1727388633071,-3282.66146261,0.00012607,2]
[339234461,1727388633083,-10788.88930125,0.00012607,2]
[339234462,1727388633095,-919.70999,0.00012607,2]
[339234463,1727388633107,-392.16304759,0.00012607,2]
[339234464,1727388633118,-355.41834579,0.00012607,2]
[339234465,1727388633130,-347.96815075,0.00012607,2]
[339234466,1727388633147,-258.45333536,0.00012607,2]
[339234467,1727388633166,-300.0,0.00012607,2]
[339234468,1727388633177,-4587.1377089,0.00012607,2]
[339234469,1727388633189,-6200.37173994,0.00012607,2]
[339234470,1727388633201,-404.4999995,0.00012607,2]
[339234471,1727388633212,-909.47605084,0.00012607,2]
[339234472,1727388633222,-300.0,0.000127,4]
[339234473,1727388633231,-1113.1381,0.000128,2]
[339234474,1727388633241,-430.0258,0.000128,2]
[339234475,1727388633254,-8073.3963,0.000128,2]
[339234476,1727388633263,-300.0,0.000128,4]
[339234477,1727388633273,-321.98315079,0.000128,2]
[339234478,1727388633283,-5342.43977812,0.000128,2]
[339234479,1727388633293,-159.41034035,0.000128,2]
[339234480,1727388633303,-175.348,0.00012803,2]
[339234481,1727388633312,-500.0,0.00012808,2]
[339234482,1727388633322,-261.61,0.00012847,2]
[339234483,1727388633332,-1000.0,0.00012864,2]
[339234484,1727388633342,-1000.0,0.00012899,2]
[339234485,1727388633351,-1000.0,0.00012899,2]
[339234486,1727388633360,-1000.0,0.00012899,2]
[339234487,1727388633370,-727.3,0.00012899,2]
[339234488,1727388633380,-163660.35082419,0.000129,2]
[339234489,1727388633389,-2298.55147445,0.000129,2]
[339234493,1727388638585,-36971.8007599,0.000129,2]
[339234494,1727388638596,-1656.07732759,0.000129,2]
[339234495,1727388638607,-18380.47787291,0.000129,2]
[339234496,1727388638743,-874.83664324,0.000129,2]
[339234497,1727388638755,-325.88,0.000129,2]
[339234498,1727388638767,-1682.74138119,0.000129,2]
[339234499,1727388638850,-2462.97712415,0.000129,2]
[339234500,1727388638861,-437.13267567,0.000129,2]
[339234501,1727388638947,-759.24899239,0.000129,2]
[339234502,1727388638959,-2820.66603228,0.000129,2]
[339234506,1727388640386,-40424.31189806,0.000129,2]
[339234507,1727388640397,-293.630589,0.000129,2]
[339234508,1727388640409,-3436.62374147,0.000129,2]
[339234509,1727388640420,-390.63671768,0.000129,2]
[339234575,1727388643534,-7543.51509834,0.000129,2]
[339234588,1727388646371,-899.2992699,0.000129,2]
[339234589,1727388646454,-8483.44302001,0.000129,2]
[339234590,1727388646537,-354.16199593,0.000129,2]
[339234591,1727388652806,150.0,0.0001389,30]
[339234592,1727388801845,500.0,0.00010068,2]
[339234593,1727389002148,425.91,9.88e-05,2]
[339234594,1727389186589,254.07,0.00010959,2]
[339234596,1727389214701,150.0,0.0001389,30]
[339234597,1727389244144,1050.0,0.00011,2]
[339234598,1727389307826,151.0,9.88e-05,2]
[339234599,1727389308266,298.0,9.88e-05,2]
[339234600,1727389497847,2000.0,0.00014,30]
[339234605,1727389554515,150.0,0.000151,120]
[339234612,1727389585557,1000.0,0.00015,30]
[339234613,1727389603371,150.0,0.000151,120]
[339234614,1727389618621,150.0,0.00015313,120]
[339234619,1727389637642,419.6,9.511e-05,2]
[339234622,1727389649010,150.0,0.000157,120]
[339234623,1727389699534,388.55,0.00010959,2]
[339234624,1727389720747,883.09,0.00010959,2]
[339234625,1727389739363,183.12,0.00010959,2]
[339234628,1727389770343,150.0,0.000111,2]
[339234635,1727389803449,150.0,0.000111,2]
[339234636,1727389803665,150.0,0.000111,2]
[339234639,1727389822940,150.0,0.0001389,30]
[339234656,1727389831578,-624.8058248,0.00011164,2]
[339234657,1727389831589,-500.0,0.00011164,2]
[339234658,1727389831599,-500.0,0.00011164,2]
[339234659,1727389831609,-500.0,0.00011164,2]
[339234660,1727389831618,-203.0,0.000114,2]
[339234661,1727389831628,-750.0,0.000114,2]
[339234662,1727389831637,-346.68,0.00011507,2]
[339234663,1727389831649,-300.0,0.00011566,2]
[339234664,1727389831658,-273.69,0.00011568,2]
[339234665,1727389831667,-1500.0,0.00011568,2]
[339234666,1727389831677,-250.0,0.00011573,2]
[339234667,1727389831686,-150.0,0.00011589,2]
[339234668,1727389831697,-449.57,0.0001165,2]
[339234669,1727389831706,-250.0,0.00011656,2]
[339234670,1727389831717,-157.83,0.00011658,2]
[339234671,1727389831727,-250.0,0.00011659,2]
[339234672,1727389831737,-983.51,0.00011662,2]
[339234673,1727389831747,-419.6,0.00011775,2]
[339234674,1727389831757,-769.69,0.00011781,2]
[339234675,1727389831767,-1000.0,0.00011894,2]
[339234676,1727389831776,-217.06,0.00011949,2]